bitfinex/quotes_BTCUSD_20241021
["timestamp","ask_amount","ask_price","bid_price","bid_amount"]
[1729494173071,0.005,68702.0,68694.0,0.25926767]
[1729494173291,0.0783,68713.0,68699.0,0.023]
[1729494173507,0.21563652,68708.0,68699.0,0.023]
[1729494173720,0.291074,68711.0,68698.0,0.023]
[1729494173721,0.145553,68704.0,68698.0,0.023]
[1729494173930,0.291091,68707.0,68698.0,0.023]
[1729494174145,0.291078,68710.0,68702.0,0.21563652]
[1729494174350,0.36459567,68709.0,68703.0,0.00291067]
[1729494174564,0.15395915,68709.0,68695.0,0.023]
[1729494174775,0.236915,68700.0,68699.0,0.005]
[1729494174978,0.38587415,68700.0,68699.0,0.005]
[1729494175188,0.25678349,68700.0,68698.0,0.002]
[1729494175366,0.29452115,68699.0,68698.0,0.002]
[1729494175565,0.29952115,68699.0,68698.0,0.002]
[1729494175875,0.30598298,68699.0,68698.0,0.002]
[1729494176285,0.30598298,68699.0,68691.0,0.21563652]
[1729494176286,0.16042098,68699.0,68691.0,0.36121452]
[1729494176492,0.16042098,68699.0,68692.0,0.023]
[1729494176493,0.00646183,68699.0,68692.0,0.023]
[1729494176945,0.145565,68698.0,68692.0,0.168576]
[1729494177151,0.291129,68698.0,68692.0,0.023]
[1729494177362,0.00646183,68699.0,68692.0,0.023]
[1729494177363,0.145572,68695.0,68692.0,0.023]
[1729494177511,0.145572,68695.0,68691.0,0.06661873]
[1729494177944,0.00651536,68694.0,68692.0,0.002]
[1729494178178,0.00651536,68694.0,68692.0,0.005]
[1729494178381,0.00651536,68694.0,68692.0,0.003]
[1729494178577,0.145572,68695.0,68691.0,0.023]
[1729494178784,0.29612,68701.0,68690.0,0.18919873]
[1729494178785,0.14554,68710.0,68695.0,0.605284]
[1729494178982,0.21563652,68702.0,68699.0,0.04360877]
[1729494179185,0.21563652,68709.0,68697.0,0.0654281]
[1729494179186,0.14895915,68710.0,68700.0,0.023]
[1729494179432,0.145547,68707.0,68702.0,0.145554]
[1729494179660,0.14895915,68710.0,68702.0,0.145554]
[1729494179869,0.14895915,68710.0,68700.0,0.33472577]
[1729494180081,0.145546,68707.0,68700.0,0.33472577]
[1729494180331,0.14895915,68710.0,68702.0,0.21563652]
[1729494180560,0.145552,68704.0,68701.0,0.04360877]
[1729494180823,0.291078,68710.0,68699.0,0.04360877]
[1729494181064,0.145554,68703.0,68702.0,0.002]
[1729494182007,0.44004115,68709.0,68702.0,0.002]
[1729494182008,0.291086,68708.0,68702.0,0.002]
[1729494182247,0.14895915,68707.0,68702.0,0.002]
[1729494182431,0.14895915,68707.0,68702.0,0.00329787]
[1729494182432,0.145552,68704.0,68702.0,0.00329787]
[1729494182726,0.145554,68703.0,68702.0,0.002]
[1729494182960,0.145548,68706.0,68701.0,0.004]
[1729494183247,0.291086,68708.0,68701.0,0.004]
[1729494183248,0.145551,68705.0,68701.0,0.004]
[1729494183469,0.145543,68708.0,68700.0,0.023]
[1729494183690,0.145545,68707.0,68702.0,0.145556]
[1729494183937,0.001,68703.0,68702.0,0.145556]
[1729494184140,0.001,68703.0,68700.0,0.168559]
[1729494184359,0.146548,68706.0,68701.0,0.145557]
[1729494184604,0.001,68705.0,68701.0,0.145557]
[1729494185065,0.296076,68711.0,68702.0,0.145555]
[1729494185267,0.145545,68707.0,68702.0,0.145555]
[1729494185885,0.147545,68707.0,68702.0,0.145555]
[1729494186117,0.002,68707.0,68702.0,0.145555]
[1729494186330,0.147546,68707.0,68702.0,0.145555]
[1729494186743,0.147546,68707.0,68700.0,0.023]
[1729494186744,0.002,68707.0,68700.0,0.023]
[1729494186950,0.002,68707.0,68702.0,0.145555]
[1729494186951,0.147547,68707.0,68702.0,0.145555]
[1729494187151,0.002,68707.0,68703.0,0.145553]
[1729494187360,0.002,68707.0,68699.0,0.023]
[1729494187563,0.002,68707.0,68704.0,0.145551]
[1729494187768,0.145543,68708.0,68703.0,0.145553]
[1729494187976,0.001,68711.0,68703.0,0.291108]
[1729494188173,0.001,68711.0,68702.0,0.023]
[1729494188174,0.145542,68709.0,68704.0,0.14555]
[1729494188403,0.145545,68708.0,68702.0,0.168555]
[1729494188630,0.145545,68708.0,68703.0,0.147553]
[1729494189094,0.145545,68708.0,68704.0,0.00244658]
[1729494189317,0.002656,68707.0,68704.0,0.14799758]
[1729494189532,0.001656,68707.0,68704.0,0.00244658]
[1729494189741,0.001656,68707.0,68704.0,0.14799658]
[1729494189953,0.001656,68707.0,68704.0,0.00244658]
[1729494190167,0.001656,68707.0,68702.0,0.24163652]
[1729494190168,0.001656,68707.0,68705.0,0.145549]
[1729494190391,0.001656,68707.0,68706.0,0.168547]
[1729494192619,0.002656,68707.0,68706.0,0.168547]
[1729494193524,0.003656,68707.0,68706.0,0.168547]
[1729494194392,0.002656,68707.0,68706.0,0.168547]
[1729494194825,0.002656,68707.0,68706.0,0.172547]
[1729494195028,0.002656,68707.0,68706.0,0.149547]
[1729494195250,0.002656,68707.0,68706.0,0.172547]
[1729494195461,0.001656,68707.0,68706.0,0.02991042]
[1729494195671,0.148201,68707.0,68706.0,0.03391042]
[1729494195854,0.148201,68707.0,68706.0,0.031]
[1729494196120,0.001656,68707.0,68706.0,0.027]
[1729494196519,0.002656,68707.0,68706.0,0.027]
[1729494196722,0.002656,68707.0,68706.0,0.03491049]
[1729494196933,0.001656,68707.0,68706.0,0.03091049]
[1729494197163,0.001656,68707.0,68706.0,0.03491049]
[1729494197370,0.002656,68707.0,68706.0,0.02991049]
[1729494197570,0.002656,68707.0,68706.0,0.17545749]
[1729494197779,0.002656,68707.0,68706.0,0.18045749]
[1729494197986,0.002656,68707.0,68706.0,0.177547]
[1729494198195,0.002656,68707.0,68706.0,0.172547]
[1729494198642,0.21563652,68720.0,68713.0,0.023]
[1729494198868,0.21563652,68720.0,68715.0,0.023]
[1729494199075,0.005,68723.0,68715.0,0.023]
[1729494199293,0.145516,68721.0,68711.0,0.023]
[1729494199438,0.145516,68721.0,68713.0,0.023]
[1729494199886,0.296022,68724.0,68713.0,0.023]
[1729494200078,0.296022,68724.0,68714.0,0.023]
[1729494200079,0.005,68722.0,68714.0,0.023]
[1729494200283,0.005,68722.0,68714.0,0.16853]
[1729494200865,0.005,68722.0,68709.0,0.21563652]
[1729494200866,0.005,68722.0,68712.0,0.023]
[1729494201077,0.005,68722.0,68716.0,0.023]
[1729494201278,0.005,68722.0,68718.0,0.023]
[1729494201478,0.005,68722.0,68720.0,0.023]
[1729494201677,0.0993,68727.0,68721.0,0.00290999]
[1729494201678,0.005,68725.0,68721.0,0.00290999]
[1729494201878,0.1043,68727.0,68721.0,0.00290999]
[1729494202098,0.25325915,68727.0,68721.0,0.00290999]
[1729494202304,0.005,68727.0,68721.0,0.00290999]
[1729494202504,0.005,68727.0,68720.0,0.168517]
[1729494202703,0.001648,68733.0,68720.0,0.023]
[1729494202909,0.001648,68733.0,68723.0,0.023]
[1729494203382,0.001648,68733.0,68722.0,0.145512]
[1729494203383,0.001648,68733.0,68722.0,0.023]
[1729494203744,0.001648,68733.0,68723.0,0.21563652]
[1729494203945,0.001648,68733.0,68726.0,0.023]
[1729494204306,0.001648,68733.0,68725.0,0.291014]
[1729494204307,0.001648,68733.0,68730.0,0.21563652]
[1729494204509,0.001648,68733.0,68732.0,0.168492]
[1729494205315,0.003648,68733.0,68732.0,0.168492]
[1729494205734,0.001648,68733.0,68732.0,0.168492]
[1729494205961,0.002648,68733.0,68732.0,0.17467497]
[1729494206157,0.002648,68733.0,68732.0,0.17358413]
[1729494206369,0.001648,68733.0,68732.0,0.17358413]
[1729494206578,0.002648,68733.0,68732.0,0.17967497]
[1729494207270,0.002648,68733.0,68732.0,0.17467497]
[1729494207504,0.002648,68733.0,68732.0,0.18258409]
[1729494207977,0.002648,68733.0,68732.0,0.37500089]
[1729494208207,0.002648,68733.0,68732.0,0.32863412]
[1729494209106,0.002648,68733.0,68732.0,0.17967497]
[1729494209324,0.002648,68733.0,68732.0,0.01118297]
[1729494209817,0.083848,68733.0,68732.0,0.01118297]
[1729494210047,0.002648,68733.0,68732.0,0.01118297]
[1729494210281,0.002648,68733.0,68732.0,0.00618297]
[1729494210509,0.002648,68733.0,68732.0,0.01118297]
[1729494210983,0.002648,68733.0,68732.0,0.02918297]
[1729494211489,0.002648,68733.0,68732.0,0.02818297]
[1729494211490,0.001648,68733.0,68732.0,0.02818297]
[1729494211756,0.001648,68733.0,68732.0,0.17367497]
[1729494212251,0.001648,68733.0,68732.0,0.17667497]
[1729494212752,0.001648,68733.0,68732.0,0.17367497]
[1729494212987,0.001648,68733.0,68732.0,0.17667497]
[1729494215824,0.001648,68733.0,68732.0,0.16073318]
[1729494216036,0.001648,68733.0,68732.0,0.151492]
[1729494216690,0.001648,68733.0,68732.0,0.17318964]
[1729494217332,0.001648,68733.0,68732.0,0.25298964]
[1729494217757,0.001648,68733.0,68732.0,0.27598964]
[1729494218652,0.001648,68733.0,68732.0,0.254292]
[1729494218886,0.001648,68733.0,68732.0,0.29763398]
[1729494219111,0.001648,68733.0,68732.0,0.31933348]
[1729494219337,0.001648,68733.0,68732.0,0.31933337]
[1729494220244,0.001648,68733.0,68732.0,0.27599139]
[1729494220465,0.001648,68733.0,68732.0,0.46829252]
[1729494220691,0.001648,68733.0,68732.0,0.42495054]
[1729494220910,0.001648,68733.0,68732.0,0.48996489]
[1729494221183,0.001648,68733.0,68732.0,0.50863634]
[1729494221380,0.001648,68733.0,68732.0,0.51063634]
[1729494221629,0.002648,68733.0,68732.0,0.51563634]
[1729494222742,0.002648,68733.0,68732.0,0.51063634]
[1729494222981,0.002648,68733.0,68732.0,0.51563634]
[1729494223727,0.002648,68733.0,68732.0,0.42895054]
[1729494225644,0.002648,68733.0,68732.0,0.51563722]
[1729494225845,0.00166,68735.0,68734.0,0.145488]
[1729494226048,0.00166,68735.0,68734.0,0.19309634]
[1729494227143,0.00166,68735.0,68734.0,0.19809634]
[1729494227290,0.00166,68735.0,68734.0,0.26310442]
[1729494227708,0.00166,68735.0,68734.0,0.20309634]
[1729494228313,0.00166,68735.0,68734.0,0.26810984]
[1729494228734,0.00166,68735.0,68734.0,0.20309634]
[1729494229968,0.00166,68735.0,68734.0,0.52664654]
[1729494230174,0.002,68745.0,68741.0,0.145473]
[1729494230385,0.002,68745.0,68741.0,0.168473]
[1729494230588,0.002,68745.0,68741.0,0.19017239]
[1729494231761,0.002,68745.0,68741.0,0.23352157]
[1729494232195,0.002,68745.0,68741.0,0.23852157]
[1729494232395,0.002,68745.0,68741.0,0.20017239]
[1729494232597,0.002,68745.0,68741.0,0.28687075]
[1729494233140,0.002,68745.0,68741.0,0.20017239]
[1729494233458,0.002,68745.0,68741.0,0.30853074]
[1729494233672,0.002,68745.0,68741.0,0.34913154]
[1729494234105,0.002,68745.0,68741.0,0.30853074]
[1729494234311,0.002,68745.0,68741.0,0.20017239]
[1729494234516,0.002,68745.0,68741.0,0.11842286]
[1729494234517,0.1729,68743.0,68741.0,0.11842286]
[1729494234723,0.15599915,68742.0,68741.0,0.03169939]
[1729494234929,0.41147015,68742.0,68741.0,0.03169939]
[1729494235159,0.49067015,68742.0,68741.0,0.01]
[1729494235609,0.49067015,68742.0,68741.0,0.005]
[1729494236579,0.49067015,68742.0,68741.0,0.003]
[1729494237250,0.49067015,68742.0,68730.0,0.21563652]
[1729494237251,0.145482,68737.0,68730.0,0.21563652]
[1729494237477,0.14895915,68736.0,68730.0,0.21563652]
[1729494238161,0.005,68737.0,68730.0,0.21563652]
[1729494238390,0.005,68737.0,68731.0,0.00290959]
[1729494238391,0.15395915,68737.0,68731.0,0.00290959]
[1729494238627,0.377183,68742.0,68732.0,0.21563652]
[1729494238628,0.005,68738.0,68732.0,0.21563652]
[1729494238861,0.005,68738.0,68733.0,0.00290942]
[1729494239138,0.005,68738.0,68735.0,0.145485]
[1729494239369,0.005,68738.0,68735.0,0.14839439]
[1729494239585,0.005,68738.0,68733.0,0.145488]
[1729494239808,0.005,68741.0,68732.0,0.000828]
[1729494240037,0.005,68738.0,68734.0,0.145486]
[1729494240997,0.005,68738.0,68733.0,0.023]
[1729494241780,0.005,68738.0,68733.0,0.16849]
[1729494242032,0.005,68738.0,68736.0,0.145484]
[1729494242215,0.005,68738.0,68733.0,0.023]
[1729494242804,0.005,68739.0,68734.0,0.001]
[1729494243020,0.005,68738.0,68734.0,0.001]
[1729494243230,0.005,68738.0,68733.0,0.16849]
[1729494243615,0.005,68738.0,68734.0,0.145486]
[1729494243819,0.187896,68742.0,68733.0,0.323977]
[1729494244080,0.005,68738.0,68737.0,0.14548]
[1729494244469,0.005,68738.0,68736.0,0.00290936]
[1729494244903,0.005,68737.0,68736.0,0.00290936]
[1729494245114,0.005,68737.0,68734.0,0.145487]
[1729494245339,0.005,68737.0,68733.0,0.028]
[1729494245560,0.005,68737.0,68734.0,0.145488]
[1729494246189,0.182896,68742.0,68733.0,0.145489]
[1729494246190,0.373842,68742.0,68733.0,0.145489]
[1729494246718,0.145476,68740.0,68737.0,0.003]
[1729494247166,0.145476,68740.0,68733.0,0.145489]
[1729494247410,0.145476,68740.0,68734.0,0.02241837]
[1729494247657,0.145477,68739.0,68735.0,0.01741837]
[1729494247888,0.145477,68739.0,68734.0,0.005]
[1729494248132,0.145477,68739.0,68737.0,0.003]
[1729494248409,0.145477,68739.0,68734.0,0.005]
[1729494248629,0.145477,68739.0,68733.0,0.145489]
[1729494248836,0.145477,68739.0,68734.0,0.02241785]
[1729494249044,0.082896,68742.0,68735.0,0.00290941]
[1729494249266,0.082896,68742.0,68736.0,0.145482]
[1729494249493,0.082896,68742.0,68735.0,0.00290941]
[1729494249494,0.082896,68742.0,68737.0,0.003]
[1729494249704,0.145473,68741.0,68737.0,0.003]
[1729494249923,0.082896,68742.0,68737.0,0.003]
[1729494250170,0.145474,68741.0,68735.0,0.00290941]
[1729494250400,0.145476,68740.0,68737.0,0.003]
[1729494250621,0.145476,68740.0,68736.0,0.004]
[1729494251087,0.145476,68740.0,68737.0,0.003]
[1729494251745,0.145476,68740.0,68737.0,0.006]
[1729494251969,0.082896,68742.0,68737.0,0.006]
[1729494252214,0.082896,68742.0,68737.0,0.009]
[1729494252412,0.003696,68742.0,68737.0,0.009]
[1729494252620,0.145474,68741.0,68737.0,0.006]
[1729494252835,0.145474,68741.0,68737.0,0.009]
[1729494253058,0.145474,68741.0,68737.0,0.003]
[1729494253305,0.003696,68742.0,68737.0,0.003]
[1729494253543,0.145474,68741.0,68737.0,0.00590933]
[1729494253765,0.145473,68741.0,68737.0,0.003]
[1729494253992,0.003696,68742.0,68737.0,0.006]
[1729494254212,0.003696,68742.0,68738.0,0.00290935]
[1729494254471,0.001656,68740.0,68738.0,0.00290935]
[1729494255125,0.001656,68740.0,68737.0,0.003]
[1729494255345,0.001656,68740.0,68737.0,0.006]
[1729494255549,0.001656,68740.0,68738.0,0.00290929]
[1729494255777,0.001656,68740.0,68737.0,0.0059093]
[1729494256191,0.001656,68740.0,68738.0,0.002]
[1729494256395,0.001656,68740.0,68738.0,0.004]
[1729494256807,0.001656,68740.0,68737.0,0.0029093]
[1729494257012,0.001656,68740.0,68737.0,0.0059093]
[1729494257442,0.001656,68740.0,68739.0,0.2120114]
[1729494257660,0.001656,68740.0,68739.0,0.17138605]
[1729494258121,0.00150111,68740.0,68739.0,0.168477]
[1729494258822,0.00150111,68740.0,68739.0,0.28236672]
[1729494259068,0.00150111,68740.0,68739.0,0.249777]
[1729494259291,0.00150111,68740.0,68739.0,0.244777]
[1729494259552,0.00150111,68740.0,68739.0,0.24768586]
[1729494259985,0.00150111,68740.0,68739.0,0.24868586]
[1729494260188,0.00150111,68740.0,68739.0,0.245777]
[1729494261432,0.00150111,68740.0,68739.0,0.250777]
[1729494261647,0.00150111,68740.0,68739.0,0.244777]
[1729494262470,0.00150111,68740.0,68739.0,0.248777]
[1729494262944,0.00150111,68740.0,68739.0,0.244777]
[1729494263195,0.00150111,68740.0,68739.0,0.249777]
[1729494263396,0.00150111,68740.0,68739.0,0.25168587]
[1729494263570,0.00150111,68740.0,68739.0,0.40564502]
[1729494263739,0.00150111,68740.0,68739.0,0.50773615]
[1729494263946,0.003696,68742.0,68741.0,0.152473]
[1729494264147,0.003696,68742.0,68741.0,0.70263102]
[1729494264346,0.003696,68742.0,68741.0,0.50683215]
[1729494264576,0.002,68745.0,68744.0,0.150467]
[1729494264776,0.002,68745.0,68744.0,0.50482615]
[1729494265052,0.145424,68765.0,68757.0,0.145438]
[1729494265269,0.36106352,68763.0,68758.0,0.023]
[1729494265493,0.145428,68763.0,68758.0,0.023]
[1729494265731,0.145428,68763.0,68756.0,0.145441]
[1729494265732,0.145428,68763.0,68761.0,0.023]
[1729494266162,0.145428,68763.0,68759.0,0.023]
[1729494266405,0.145428,68763.0,68756.0,0.04351864]
[1729494266406,0.1707,68758.0,68756.0,0.04351864]
[1729494266620,0.145457,68749.0,68748.0,0.21563652]
[1729494266846,0.145456,68749.0,68748.0,0.21563652]
[1729494267117,0.145456,68749.0,68744.0,0.005]
[1729494267118,0.14895915,68757.0,68744.0,0.04851864]
[1729494267317,0.14895915,68757.0,68744.0,0.005]
[1729494267756,0.290883,68756.0,68742.0,0.04351864]
[1729494267968,0.145462,68747.0,68742.0,0.04351864]
[1729494268379,0.145462,68747.0,68742.0,0.18898864]
[1729494269004,0.145462,68747.0,68744.0,0.023]
[1729494269209,0.145462,68747.0,68744.0,0.02518257]
[1729494269626,0.005,68750.0,68744.0,0.00218257]
[1729494269839,0.145469,68743.0,68742.0,0.003]
[1729494270062,0.29442815,68743.0,68742.0,0.003]
[1729494270985,0.29842815,68743.0,68742.0,0.003]
[1729494271226,0.004,68743.0,68742.0,0.145471]
[1729494271455,0.300892,68754.0,68738.0,0.0037374]
[1729494271456,0.005,68754.0,68743.0,0.023]
[1729494271658,0.321965,68745.0,68744.0,0.001]
[1729494272100,0.145472,68742.0,68738.0,0.000828]
[1729494272306,0.14547,68743.0,68742.0,0.003]
[1729494272514,0.0961,68745.0,68743.0,0.023]
[1729494272721,0.0961,68745.0,68742.0,0.003]
[1729494272722,0.153469,68743.0,68742.0,0.004]
[1729494272927,0.153469,68743.0,68742.0,0.001]
[1729494273131,0.145469,68743.0,68738.0,0.000828]
[1729494273540,0.145469,68743.0,68738.0,0.001828]
[1729494274157,0.536496,68745.0,68738.0,0.147307]
[1729494274357,0.532496,68745.0,68738.0,0.146307]
[1729494274924,0.241566,68745.0,68738.0,0.000828]
[1729494275153,0.241566,68745.0,68739.0,0.145476]
[1729494275154,0.0961,68745.0,68739.0,0.145476]
[1729494275373,0.241566,68745.0,68739.0,0.145476]
[1729494275828,0.241566,68745.0,68740.0,0.145475]
[1729494275829,0.001,68743.0,68740.0,0.145475]
[1729494276038,0.0961,68745.0,68740.0,0.145475]
[1729494276259,0.0961,68745.0,68738.0,0.14921529]
[1729494276463,0.0961,68745.0,68739.0,0.145476]
[1729494276886,0.001,68743.0,68739.0,0.145476]
[1729494277375,0.145468,68744.0,68739.0,0.001]
[1729494277593,0.0961,68745.0,68739.0,0.146477]
[1729494277809,0.0961,68745.0,68739.0,0.145477]
[1729494278228,0.0961,68745.0,68739.0,0.146477]
[1729494278701,0.0961,68745.0,68740.0,0.145475]
[1729494278911,0.0961,68745.0,68741.0,0.145473]
[1729494279332,0.0961,68745.0,68739.0,0.291955]
[1729494279333,0.14546,68748.0,68742.0,0.145469]
[1729494279545,0.15895915,68749.0,68742.0,0.145469]
[1729494279744,0.001,68745.0,68742.0,0.145469]
[1729494280181,0.30441615,68749.0,68743.0,0.145468]
[1729494281026,0.145459,68748.0,68742.0,0.149471]
[1729494281259,0.145467,68744.0,68738.0,0.04434779]
[1729494281470,0.145466,68745.0,68739.0,0.145475]
[1729494281678,0.145466,68745.0,68743.0,0.004]
[1729494281896,0.15895915,68749.0,68743.0,0.004]
[1729494282117,0.44987515,68749.0,68740.0,0.145473]
[1729494282355,0.44987515,68749.0,68741.0,0.145473]
[1729494282579,0.145462,68747.0,68741.0,0.145473]
[1729494282844,0.145464,68746.0,68742.0,0.004]
[1729494283077,0.145463,68746.0,68740.0,0.145474]
[1729494283532,0.290921,68747.0,68742.0,0.14547]
[1729494283533,0.14546,68747.0,68742.0,0.14547]
[1729494283988,0.145466,68745.0,68739.0,0.18899579]
[1729494284199,0.43639,68746.0,68739.0,0.145476]
[1729494284414,0.145464,68746.0,68740.0,0.145475]
[1729494284622,0.15395915,68746.0,68738.0,0.04434779]
[1729494284898,0.145468,68744.0,68738.0,0.18982579]
[1729494285105,0.145468,68744.0,68739.0,0.145477]
[1729494285325,0.29942215,68746.0,68740.0,0.145475]
[1729494285543,0.29942215,68746.0,68741.0,0.145473]
[1729494286877,0.29942215,68746.0,68741.0,0.146473]
[1729494287634,0.29942215,68746.0,68741.0,0.148473]
[1729494287861,0.15395915,68746.0,68741.0,0.003]
[1729494288084,0.145466,68745.0,68741.0,0.003]
[1729494288290,0.145469,68743.0,68741.0,0.003]
[1729494288497,0.290934,68744.0,68741.0,0.003]
[1729494288707,0.15395915,68746.0,68744.0,0.145466]
[1729494288917,0.15395915,68746.0,68742.0,0.145469]
[1729494289124,0.15395915,68746.0,68743.0,0.145468]
[1729494289354,0.005,68748.0,68744.0,0.145465]
[1729494289590,0.15395915,68748.0,68744.0,0.145465]
[1729494290330,0.14895915,68748.0,68744.0,0.145465]
[1729494290534,0.14895915,68748.0,68745.0,0.145463]
[1729494290746,0.002,68748.0,68743.0,0.290938]
[1729494290947,0.002,68748.0,68745.0,0.145463]
[1729494291161,0.002,68748.0,68746.0,0.145462]
[1729494291809,0.002,68748.0,68744.0,0.290934]
[1729494292050,0.244254,68751.0,68744.0,0.290934]
[1729494292051,0.0988,68751.0,68744.0,0.290934]
[1729494292286,0.0988,68751.0,68746.0,0.145461]
[1729494292287,0.003,68748.0,68746.0,0.145461]
[1729494292779,0.002,68748.0,68746.0,0.145461]
[1729494293041,0.002,68748.0,68744.0,0.290934]
[1729494293042,0.002,68748.0,68744.0,0.440399]
[1729494293282,0.002,68748.0,68747.0,0.14546]
[1729494293512,0.01,68753.0,68749.0,0.145456]
[1729494293774,0.01,68753.0,68746.0,0.003]
[1729494293963,0.155448,68753.0,68748.0,0.145457]
[1729494294642,0.155448,68753.0,68749.0,0.004]
[1729494295103,0.155448,68753.0,68749.0,0.145456]
[1729494295104,0.01,68753.0,68749.0,0.145456]
[1729494295312,0.01,68753.0,68746.0,0.290926]
[1729494295524,0.145451,68752.0,68748.0,0.002]
[1729494295935,0.145451,68752.0,68749.0,0.002]
[1729494296141,0.145451,68752.0,68748.0,0.002]
[1729494296815,0.145451,68752.0,68747.0,0.145459]
[1729494297041,0.145451,68752.0,68749.0,0.003]
[1729494297287,0.145451,68752.0,68749.0,0.005]
[1729494297525,0.145453,68751.0,68749.0,0.002]
[1729494298738,0.155449,68753.0,68749.0,0.005]
[1729494298968,0.155445,68755.0,68750.0,0.145453]
[1729494299209,0.01,68755.0,68749.0,0.003]
[1729494299451,0.005,68755.0,68751.0,0.145451]
[1729494299687,0.29939915,68757.0,68752.0,0.145449]
[1729494299925,0.001654,68758.0,68753.0,0.145447]
[1729494300444,0.147092,68758.0,68753.0,0.145447]
[1729494300910,0.145439,68757.0,68753.0,0.145447]
[1729494301419,0.145439,68757.0,68752.0,0.145449]
[1729494301646,0.155454,68750.0,68749.0,0.002]
[1729494301897,0.30441315,68750.0,68749.0,0.002]
[1729494303403,0.30441315,68750.0,68743.0,0.25920783]
[1729494303404,0.290913,68749.0,68743.0,0.25920783]
[1729494303553,0.005,68748.0,68743.0,0.25920783]
[1729494304060,0.145466,68745.0,68743.0,0.04357409]
[1729494304513,0.145466,68745.0,68742.0,0.04357409]
[1729494306143,0.145466,68745.0,68744.0,0.04357308]
[1729494306387,0.145463,68746.0,68743.0,0.06536114]
[1729494306631,0.145463,68746.0,68745.0,0.04357363]
[1729494307768,0.145463,68746.0,68745.0,0.04757363]
[1729494308003,0.1742,68751.0,68745.0,0.009]
[1729494308212,0.145452,68751.0,68745.0,0.009]
[1729494308423,0.150451,68752.0,68745.0,0.149463]
[1729494308631,0.150451,68752.0,68746.0,0.145462]
[1729494309043,0.150451,68752.0,68745.0,0.005]
[1729494309044,0.005,68752.0,68747.0,0.14546]
[1729494309455,0.005,68752.0,68747.0,0.145458]
[1729494310072,0.005,68752.0,68748.0,0.145458]
[1729494310277,0.005,68752.0,68747.0,0.14546]
[1729494310508,0.005,68752.0,68747.0,0.14646]
[1729494310712,0.092654,68758.0,68749.0,0.290913]
[1729494310713,0.001654,68758.0,68749.0,0.290913]
[1729494310921,0.006654,68758.0,68752.0,0.145449]
[1729494311322,0.006654,68758.0,68750.0,0.145453]
[1729494311524,0.006654,68758.0,68749.0,0.04357363]
[1729494311525,0.290879,68757.0,68749.0,0.04357363]
[1729494311751,0.290903,68752.0,68747.0,0.04357363]
[1729494311974,0.005,68749.0,68744.0,0.04357363]
[1729494312172,0.145462,68747.0,68744.0,0.04357363]
[1729494312402,0.145464,68746.0,68744.0,0.04357363]
[1729494312809,0.15395915,68749.0,68744.0,0.04357363]
[1729494313014,0.145458,68748.0,68747.0,0.000827]
[1729494313625,0.145458,68748.0,68747.0,0.005827]
[1729494314266,0.145458,68748.0,68747.0,0.000827]
[1729494314722,0.148458,68748.0,68747.0,0.000827]
[1729494315125,0.150458,68748.0,68747.0,0.000827]
[1729494316746,0.155458,68748.0,68747.0,0.000827]
[1729494317364,0.69025367,68748.0,68747.0,0.000827]
[1729494317626,0.47461715,68748.0,68747.0,0.000827]
[1729494320771,0.325658,68748.0,68747.0,0.000827]
[1729494320994,0.005,68748.0,68747.0,0.18986063]
[1729494321169,0.005,68748.0,68747.0,0.04440063]
[1729494321596,0.005,68748.0,68747.0,0.18986063]
[1729494321810,0.005,68748.0,68747.0,0.04440063]
[1729494322943,0.005,68748.0,68747.0,0.000827]
[1729494323614,0.005,68748.0,68747.0,0.146287]
[1729494323826,0.005,68748.0,68747.0,0.000827]
[1729494324939,0.005,68748.0,68747.0,0.146287]
[1729494326111,0.005,68748.0,68747.0,0.000827]
[1729494327204,0.150458,68748.0,68747.0,0.000827]
[1729494330082,0.005,68748.0,68747.0,0.000827]
[1729494330286,0.005,68748.0,68747.0,0.06626953]
[1729494332766,0.150458,68748.0,68747.0,0.06626953]
[1729494332994,0.005,68748.0,68747.0,0.21172953]
[1729494333257,0.005,68748.0,68747.0,0.06626953]
[1729494333503,0.005,68748.0,68747.0,0.21172953]
[1729494333719,0.005,68748.0,68747.0,0.000827]
[1729494334778,0.005,68748.0,68747.0,0.06628209]
[1729494334991,0.005,68748.0,68747.0,0.000827]
[1729494338318,0.150458,68748.0,68747.0,0.000827]
[1729494338532,0.005,68748.0,68747.0,0.000827]
[1729494341302,0.150458,68748.0,68747.0,0.000827]
[1729494341510,0.005,68748.0,68747.0,0.000827]
[1729494341928,0.150458,68748.0,68747.0,0.000827]
[1729494343015,0.150458,68748.0,68747.0,0.06628407]
[1729494343016,0.30441715,68748.0,68747.0,0.06628407]
[1729494343236,0.30441715,68748.0,68747.0,0.000827]
[1729494343465,0.30441715,68748.0,68747.0,0.04446645]
[1729494343695,0.30441715,68748.0,68747.0,0.000827]
[1729494344204,0.150458,68748.0,68747.0,0.04446645]
[1729494344439,0.150458,68748.0,68747.0,0.000827]
[1729494344660,0.154458,68748.0,68747.0,0.04446645]
[1729494344875,0.152458,68748.0,68747.0,0.04446645]
[1729494345048,0.150458,68748.0,68747.0,0.04446645]
[1729494345289,0.153458,68748.0,68747.0,0.04446645]
[1729494345443,0.154458,68748.0,68747.0,0.04446645]
[1729494345643,0.158458,68748.0,68747.0,0.000827]
[1729494345846,0.158458,68748.0,68747.0,0.04446645]
[1729494346290,0.154458,68748.0,68747.0,0.04446645]
[1729494347314,0.158458,68748.0,68747.0,0.04446645]
[1729494347512,0.150458,68748.0,68747.0,0.04446645]